bitfinex/quotes_ETHUSD_20220201
["timestamp","ask_amount","ask_price","bid_price","bid_amount"]
[1643713227667,6.3,2738.7,2736.7,4.94487]
[1643713227668,0.01205341,2738.4,2736.7,1.6792]
[1643713227861,0.1826,2738.3,2736.7,0.526]
[1643713228062,0.34929111,2737.3,2736.8,0.69483846]
[1643713228263,0.34929111,2737.3,2736.9,1.8263]
[1643713228667,0.34929111,2737.3,2736.5,2.86180916]
[1643713228668,0.34929111,2737.3,2736.5,0.18279]
[1643713229264,0.34688282,2736.6,2736.5,1.82652]
[1643713230073,0.34688282,2736.6,2736.5,2.5571419]
[1643713230371,0.93505339,2736.9,2736.5,2.5571419]
[1643713230571,1.2337,2737.9,2736.5,2.5571419]
[1643713230804,2.0,2737.8,2736.7,0.91329]
[1643713231604,0.88719011,2736.8,2736.7,0.91329]
[1643713231806,0.88719011,2736.8,2736.2,0.01283375]
[1643713231807,1.33233405,2736.8,2736.0,3.05276409]
[1643713232009,1.33233405,2736.8,2735.4,0.73274415]
[1643713232210,1.33233405,2736.8,2735.4,0.00183535]
[1643713232404,2.0,2736.7,2735.2,3.5]
[1643713232619,1.01248639,2736.2,2734.7,0.00183535]
[1643713232806,3.74379024,2736.1,2734.7,0.00183535]
[1643713233006,0.43819997,2736.0,2734.3,2.86317798]
[1643713233212,0.43819997,2736.0,2733.9,0.19729539]
[1643713233213,0.99999999,2735.3,2733.9,0.00183535]
[1643713233407,0.99999999,2735.1,2733.9,3.50183535]
[1643713233605,2.7087,2735.0,2733.0,0.18279]
[1643713233806,0.79035495,2733.1,2733.0,0.18279]
[1643713234107,0.41805945,2733.1,2733.0,0.18279]
[1643713234304,0.41805945,2733.1,2732.9,0.01255746]
[1643713235363,0.93671053,2733.0,2732.9,0.01255746]
[1643713235764,5.945e-05,2733.1,2732.9,0.19534746]
[1643713235968,0.17315873,2734.6,2733.0,1.0]
[1643713236166,0.1827,2735.0,2733.6,0.01217808]
[1643713236364,0.1827,2735.0,2733.7,0.526]
[1643713236767,0.1827,2735.0,2733.7,0.4131944]
[1643713236964,5.6857,2735.5,2733.7,0.3]
[1643713236965,0.94412035,2733.8,2733.7,0.3]
[1643713237167,0.83092595,2733.8,2733.7,0.3]
[1643713237365,0.83092595,2733.8,2733.6,0.01217808]
[1643713238168,0.38399157,2733.7,2733.6,0.01217808]
[1643713239218,0.38399157,2733.7,2733.1,0.38602951]
[1643713239421,2.37870781,2733.7,2732.7,0.6391944]
[1643713239622,2.37870781,2733.7,2732.4,1.4631008]
[1643713239826,0.68003319,2732.6,2732.2,0.19089549]
[1643713240023,0.68003319,2732.6,2732.3,0.1829]
[1643713240425,0.68003319,2732.6,2732.1,0.36569]
[1643713240822,0.4012101,2732.5,2732.1,0.36569]
[1643713241022,0.4012101,2732.5,2732.1,0.66569]
[1643713241323,0.4012101,2732.5,2732.2,0.526]
[1643713241523,0.4012101,2732.5,2732.4,5.43279]
[1643713241723,0.4012101,2732.5,2732.4,7.44169]
[1643713242160,0.1829,2734.1,2732.4,7.44169]
[1643713242364,0.1829,2734.1,2732.6,0.91442]
[1643713242560,0.1829,2734.1,2733.1,0.85701082]
[1643713242863,0.1829,2734.7,2733.2,2.50295371]
[1643713243067,0.1827,2734.8,2733.3,0.526]
[1643713243263,0.1827,2734.8,2733.4,4.79193397]
[1643713243463,0.1827,2734.8,2733.5,1.62291]
[1643713243667,8.6024,2735.3,2733.5,1.62291]
[1643713243668,0.1827,2735.0,2733.6,3.35766871]
[1643713243862,0.93465412,2734.4,2733.8,0.66959364]
[1643713244063,0.93465412,2734.4,2733.9,0.439]
[1643713244461,0.40376466,2734.3,2733.9,0.739]
[1643713244870,0.40376466,2734.3,2733.9,1.039]
[1643713245065,0.40376466,2734.3,2733.9,0.6]
[1643713245266,0.40376466,2734.3,2733.9,0.3]
[1643713245683,0.40376466,2734.3,2733.4,0.7827]
[1643713245911,0.81962257,2733.6,2733.4,0.1827]
[1643713246113,0.39564015,2733.5,2733.3,0.1829]
[1643713246510,0.39564015,2733.5,2733.2,0.1829]
[1643713246712,0.39564015,2733.5,2733.1,0.1829]
[1643713249319,0.73802169,2733.1,2732.7,0.1829]
[1643713249569,0.3237249,2733.0,2732.7,0.1829]
[1643713250671,0.3237249,2733.0,2732.7,0.3]
[1643713250873,0.3237249,2733.0,2732.8,0.1829]
[1643713251270,0.3237249,2733.0,2732.6,0.1829]
[1643713256034,2.5066249,2733.0,2731.6,0.1829]
[1643713256231,1.13819997,2732.9,2731.4,0.1829]
[1643713256430,2.1829,2732.8,2731.4,0.1829]
[1643713257072,0.78069167,2731.6,2731.4,0.1829]
[1643713257272,0.38305316,2731.5,2731.4,0.1829]
[1643713257475,0.38305316,2731.5,2730.9,0.1829]
[1643713257876,0.38305316,2731.5,2731.0,0.18279]
[1643713258077,0.38305316,2731.5,2731.1,0.1829]
[1643713258476,0.38305316,2731.5,2731.2,0.18279]
[1643713258682,0.1829,2732.5,2731.2,0.18279]
[1643713259575,0.40982525,2731.5,2731.3,0.85329132]
[1643713259779,0.40982525,2731.5,2731.2,0.18279]
[1643713260377,0.40982525,2731.5,2731.4,0.18279]
[1643713260824,0.68238392,2731.9,2731.4,0.18279]
[1643713261027,0.68238392,2731.9,2731.5,0.1829]
[1643713261629,0.68238392,2731.9,2731.3,0.1829]
[1643713261829,0.44358824,2731.8,2731.3,0.1829]
[1643713262130,0.44358824,2731.8,2730.9,0.1829]
[1643713262328,0.93496845,2731.1,2730.9,0.1829]
[1643713262528,0.93496845,2731.1,2730.8,0.1829]
[1643713262529,0.4499843,2731.0,2730.8,0.1829]
[1643713262730,0.4499843,2731.0,2730.8,1.1829]
[1643713263432,0.44848838,2731.0,2730.8,1.1829]
[1643713263836,0.44848838,2731.0,2730.8,1.0829]
[1643713264232,9.3378,2732.2,2730.8,1.0]
[1643713264432,1.4299,2732.2,2730.8,1.0]
[1643713264683,1.4299,2732.2,2730.8,22.39]
[1643713264884,1.4299,2732.2,2730.9,0.18279]
[1643713265086,0.27639994,2732.9,2731.5,0.86570573]
[1643713265087,0.83750945,2732.1,2731.5,0.86570573]
[1643713265283,0.83750945,2732.1,2731.6,0.3]
[1643713265485,1.2178,2732.6,2731.6,0.92179]
[1643713265683,0.27639994,2732.9,2731.6,0.92179]
[1643713266288,0.27639994,2732.9,2731.6,1.92179]
[1643713266492,0.40571599,2732.1,2732.0,4.0388894]
[1643713266903,0.40571599,2732.1,2732.0,4.3388894]
[1643713267689,0.40571599,2732.1,2732.0,4.8216794]
[1643713267988,0.40571599,2732.1,2732.0,5.8216794]
[1643713268435,0.27639994,2732.9,2732.0,5.8216794]
[1643713268837,0.27639994,2732.9,2732.1,1.0]
[1643713269241,0.1829,2733.3,2732.3,0.01208599]
[1643713269441,0.00408072,2734.6,2733.2,0.70138867]
[1643713269442,1.09433774,2733.7,2733.2,0.70138867]
[1643713269642,4.0497,2734.5,2733.3,0.439]
[1643713269841,0.1829,2734.5,2733.3,0.439]
[1643713270440,0.35253551,2733.5,2733.3,0.439]
[1643713270842,0.1829,2734.5,2733.3,0.439]
[1643713271447,0.1827,2734.6,2733.3,2.92443317]
[1643713271841,0.1827,2734.6,2733.7,1.20898127]
[1643713271842,0.3220492,2734.1,2733.7,1.20898127]
[1643713272087,0.1827,2734.6,2733.8,2.73384978]
[1643713272288,4.0208,2735.1,2733.9,1.0]
[1643713272487,0.1827,2735.3,2734.0,0.439]
[1643713272684,4.64580302,2736.3,2734.0,0.439]
[1643713272685,0.1827,2735.5,2734.2,0.01288179]
[1643713272886,3.0059,2736.2,2734.2,0.01288179]
[1643713272887,0.8978027,2735.9,2735.3,0.78465692]
[1643713273084,0.0121161,2736.4,2734.3,0.439]
[1643713273085,0.86149595,2735.1,2735.0,0.439]
[1643713273483,0.86149595,2735.1,2735.0,0.739]
[1643713274289,0.86149595,2735.1,2735.0,1.65927524]
[1643713274687,0.86149595,2735.1,2735.0,5.90927524]
[1643713274889,0.86149595,2735.1,2735.0,2.65927524]
[1643713275588,0.86149595,2735.1,2735.0,1.65927524]
[1643713275832,0.86149595,2735.1,2734.9,0.3]
[1643713276031,0.86149595,2735.1,2734.4,1.3]
[1643713276233,0.86149595,2735.1,2734.4,0.3]
[1643713276431,0.86149595,2735.1,2734.2,1.3]
[1643713276630,0.86149595,2735.1,2734.7,0.33995918]
[1643713276833,0.86149595,2735.1,2734.9,0.7575698]
[1643713277030,0.86149595,2735.1,2734.7,0.33995918]
[1643713277630,0.86149595,2735.1,2734.1,0.71539994]
[1643713278035,0.86149595,2735.1,2734.2,0.72306351]
[1643713278036,0.86064249,2734.7,2734.2,0.72306351]
[1643713278236,0.86149595,2735.1,2734.2,0.72306351]
[1643713278439,0.86149595,2735.1,2733.2,1.09879952]
[1643713278440,0.99999999,2734.8,2733.2,1.09879952]
[1643713278639,0.99999999,2734.8,2732.8,2.19396108]
[1643713278640,1.0129813,2734.4,2733.0,0.00181952]
[1643713278837,0.99999999,2734.2,2733.0,0.00181952]
[1643713279037,4.16558986,2734.3,2733.0,0.00181952]
[1643713279038,0.0129889,2733.7,2733.0,0.00181952]
[1643713279240,0.0129889,2733.7,2731.9,0.01205618]
[1643713279241,1.72658986,2733.6,2731.9,0.01205618]
[1643713279444,0.01266298,2733.0,2731.6,0.18460952]
[1643713279685,0.1829,2732.9,2731.6,0.18460952]
[1643713279884,0.1829,2732.9,2731.6,0.18279]
[1643713279885,0.3170552,2731.7,2731.6,0.18279]
[1643713280085,0.1829,2732.9,2731.3,0.39066056]
[1643713280484,0.69578472,2732.4,2731.3,0.39066056]
[1643713280884,0.69578472,2732.4,2731.4,0.18279]
[1643713281087,1.116526,2732.4,2732.0,0.33602361]
[1643713281287,0.69578472,2732.4,2732.0,0.3]
[1643713281786,0.69578472,2732.4,2731.6,0.61294001]
[1643713282188,0.69578472,2732.4,2731.6,0.31294001]
[1643713282385,0.69578472,2732.4,2731.8,0.41955281]
[1643713282785,0.69578472,2732.4,2731.8,0.71955281]
[1643713283431,0.42834535,2732.5,2731.8,1.01955281]
[1643713283634,0.42834535,2732.5,2731.8,1.20234281]
[1643713284038,0.42834535,2732.5,2731.8,0.3]
[1643713284836,0.42834535,2732.5,2731.6,0.31294001]
[1643713285035,3.3090574,2733.3,2731.4,0.18279]
[1643713285036,0.37189042,2731.8,2731.4,0.18279]
[1643713285242,1.30894914,2731.8,2731.4,0.18279]
[1643713285439,1.30894914,2731.8,2731.2,0.76692477]
[1643713285637,1.30894914,2731.8,2731.2,1.06692477]
[1643713286136,1.01295184,2732.9,2731.2,1.36692477]
[1643713286137,2.3718186,2732.8,2731.2,1.36692477]
[1643713286340,2.40069141,2733.2,2731.3,0.62179]
[1643713286536,2.38021136,2733.2,2731.3,0.62179]
[1643713286936,2.38021136,2733.2,2731.3,0.439]
[1643713286937,0.76813553,2732.1,2731.3,0.439]
[1643713287182,0.41610129,2731.9,2731.3,0.439]
[1643713287379,0.41610129,2731.9,2731.3,1.439]
[1643713287982,0.41610129,2731.9,2731.3,0.439]
[1643713288283,0.01299797,2732.7,2731.3,0.439]
[1643713289281,0.75674212,2732.0,2731.5,0.92749415]
[1643713289689,2.93302893,2733.2,2731.6,0.439]
[1643713289886,2.93302893,2733.2,2731.6,0.739]
[1643713289887,2.14801627,2733.2,2731.6,0.739]
[1643713290084,2.16957992,2733.2,2731.6,0.739]
[1643713290283,0.36453972,2732.4,2732.0,0.3179693]
[1643713290483,0.36453972,2732.4,2731.6,0.439]
[1643713290684,0.74232321,2732.0,2731.6,0.439]
[1643713291333,0.74232321,2732.0,2731.6,0.739]
[1643713291533,0.40568904,2731.8,2731.6,0.439]
[1643713293235,1.01210126,2733.1,2731.6,0.439]
[1643713293637,0.01210126,2733.1,2731.6,0.439]
[1643713294235,0.01210126,2733.1,2731.6,0.739]
[1643713294236,0.39047214,2732.0,2731.6,0.739]
[1643713294434,0.94304697,2732.4,2731.6,0.739]
[1643713294686,0.94304697,2732.4,2731.6,0.92179]
[1643713294890,0.94304697,2732.4,2731.9,0.3]
[1643713295189,0.94304697,2732.4,2731.6,0.92179]
[1643713295586,0.43346862,2732.0,2731.6,0.92179]
[1643713295988,0.43346862,2732.0,2731.7,0.71138797]
[1643713296188,0.43346862,2732.0,2731.7,1.15038797]
[1643713296387,0.43346862,2732.0,2731.7,1.45038797]
[1643713296589,0.43346862,2732.0,2731.7,0.739]
[1643713296988,0.43346862,2732.0,2731.7,0.3]
[1643713297220,0.94304697,2732.4,2731.6,0.3]
[1643713297397,0.94304697,2732.4,2731.5,0.18279]
[1643713297589,0.94304697,2732.4,2731.4,0.439]
[1643713297790,0.94304697,2732.4,2731.8,0.71442243]
[1643713298326,0.94304697,2732.4,2731.8,0.6]
[1643713298527,0.43430588,2731.9,2731.5,0.3]
[1643713298728,0.43430588,2731.9,2731.4,0.6]
[1643713298926,0.43430588,2731.9,2731.3,1.6]
[1643713299526,0.43430588,2731.9,2731.4,0.72907963]
[1643713299933,0.1829,2733.0,2731.4,0.91186963]
[1643713300130,0.1829,2733.0,2731.4,1.35086963]
[1643713300531,0.88773481,2732.1,2731.4,1.16807963]
[1643713300930,0.43104372,2731.6,2731.4,1.16807963]
[1643713302177,0.43104372,2731.6,2731.4,0.439]
[1643713303278,1.35148468,2731.6,2731.4,0.439]
[1643713303476,0.43104372,2731.6,2731.4,0.439]
[1643713303678,4.4695,2732.7,2731.4,0.439]
[1643713303878,0.1829,2732.8,2731.5,0.18279]
[1643713304477,0.72249032,2732.1,2731.6,0.78301688]
[1643713304682,0.72249032,2732.1,2731.5,0.18279]
[1643713304683,0.40749277,2732.0,2731.5,0.18279]
[1643713304883,0.40749277,2732.0,2731.6,0.3]
[1643713305086,0.40749277,2732.0,2731.3,0.3]
[1643713305087,0.43625451,2731.4,2731.3,0.3]
[1643713305282,0.43625451,2731.4,2731.2,8.04]
[1643713307464,0.43223599,2731.4,2731.2,8.04]
[1643713307672,0.1829,2732.5,2731.2,8.04]
[1643713307869,0.1829,2732.5,2731.3,1.0]
[1643713308065,0.1829,2732.5,2731.2,8.04]
[1643713308965,0.4057855,2731.7,2731.2,8.04]
[1643713309581,0.4057855,2731.7,2731.4,0.39128677]
[1643713309788,0.76271488,2731.8,2731.4,0.69128677]
[1643713309988,0.1829,2732.5,2731.4,0.69128677]
[1643713310890,1.30525397,2732.0,2731.5,0.77081331]
[1643713311292,1.30525397,2732.0,2731.6,0.3]
[1643713311491,0.1829,2732.5,2731.6,0.3]
[1643713311691,0.0128118,2732.6,2731.6,0.3]
[1643713312493,1.24067328,2732.1,2731.6,0.3]
[1643713313428,1.24067328,2732.1,2731.3,1.6]
[1643713313628,1.24067328,2732.1,2731.3,1.3]
[1643713314128,0.38356942,2731.6,2731.3,2.18277353]
[1643713315536,0.91216601,2732.1,2731.3,2.18277353]
[1643713315737,0.91216601,2732.1,2731.3,2.48277353]
[1643713316240,0.91216601,2732.1,2731.3,2.18277353]
[1643713316839,0.91216601,2732.1,2731.3,2.48277353]
[1643713317475,0.91216601,2732.1,2731.3,2.18277353]
[1643713317676,0.40119167,2731.6,2731.3,0.3]
[1643713317884,0.40119167,2731.6,2731.2,7.44]
[1643713317885,0.40119167,2731.6,2731.2,7.74]
[1643713318076,0.40119167,2731.6,2731.2,8.04]
[1643713318277,0.91216601,2732.1,2731.2,7.74]
[1643713318877,0.91216601,2732.1,2731.3,0.91542097]
[1643713319478,0.91216601,2732.1,2731.4,0.32687747]
[1643713320084,0.1829,2732.5,2731.4,0.32687747]
[1643713320288,0.0128118,2732.6,2731.4,3.15682121]
[1643713320289,0.1829,2732.6,2731.4,3.15682121]
[1643713320494,1.1923,2733.6,2732.9,0.43796062]
[1643713320495,3.83124428,2733.3,2732.9,0.43796062]
[1643713320685,3.83124428,2733.3,2731.6,21.43235234]
[1643713320686,7.3177,2733.2,2732.4,0.527]
[1643713321136,0.68536407,2732.9,2732.4,1.55379319]
[1643713321540,0.68536407,2732.9,2732.4,1.50379319]
[1643713321735,1.91998438,2733.1,2732.4,0.777]
[1643713321937,7.3177,2733.2,2732.5,0.3]
[1643713322149,7.3177,2733.2,2732.6,0.527]
[1643713322345,7.3177,2733.2,2732.7,0.18279]
[1643713322547,7.3177,2733.2,2732.8,0.527]
[1643713322945,0.33707018,2732.9,2732.8,0.527]
[1643713323149,0.8044396,2733.0,2732.8,0.827]
[1643713323451,7.3177,2733.2,2732.8,0.3]
[1643713323647,7.3177,2733.2,2732.8,0.527]
[1643713323849,7.3177,2733.2,2732.8,0.827]
[1643713324448,7.3177,2733.2,2733.0,0.91441]
[1643713324699,7.3177,2733.2,2733.1,7.15979]
[1643713324896,7.3177,2733.2,2733.1,7.45979]
[1643713325295,7.3177,2733.2,2733.1,8.45979]
[1643713325496,7.3177,2733.2,2733.1,1.70979]
[1643713325703,7.3177,2733.2,2733.1,1.527]
[1643713326297,7.3177,2733.2,2733.0,1.21441]
[1643713326298,7.3177,2733.2,2732.5,1.835027]
[1643713326599,2.0,2733.1,2732.1,0.527]
[1643713327100,2.0,2733.1,2731.7,0.56011198]
[1643713327101,0.0123481,2732.8,2731.7,0.56011198]
[1643713327399,1.54476982,2732.7,2731.2,7.62460952]
[1643713327596,2.1829,2732.6,2731.2,7.62279]
[1643713327797,1.54476982,2732.5,2731.2,7.62279]
[1643713327997,0.1829,2732.7,2731.2,7.62279]
[1643713328197,1.54491936,2732.6,2731.2,7.62279]
[1643713328449,1.54491936,2732.6,2732.1,0.79171745]
[1643713328450,0.82440273,2732.6,2732.1,0.79171745]
[1643713328648,0.82440273,2732.6,2731.3,1.527]
[1643713329043,0.82440273,2732.6,2731.3,2.2589309]
[1643713329249,0.36153028,2732.7,2731.3,2.2589309]
[1643713329250,0.36153028,2732.7,2731.7,0.91486]
[1643713329448,0.36153028,2732.7,2731.8,0.70979]
[1643713329650,0.36153028,2732.7,2732.2,0.33292056]
[1643713329850,0.36153028,2732.7,2732.1,0.527]
[1643713330254,0.36153028,2732.7,2732.1,1.00979]
[1643713330255,0.87300378,2732.5,2732.1,1.00979]
[1643713330451,0.87300378,2732.5,2732.1,1.30979]
[1643713330956,0.36153028,2732.7,2732.2,0.41281318]
[1643713331354,0.36153028,2732.7,2732.1,0.3]
[1643713331754,0.36153028,2732.7,2731.8,2.127]
[1643713331957,0.36153028,2732.7,2731.8,1.127]
[1643713332188,0.36153028,2732.7,2731.8,1.30979]
[1643713332387,0.36153028,2732.7,2732.1,0.39631944]
[1643713332689,0.86641069,2732.5,2732.0,0.18279]
[1643713333089,0.86641069,2732.5,2731.6,1.01239154]
[1643713333090,0.86641069,2732.5,2731.6,0.01239154]
[1643713333290,0.86641069,2732.5,2731.4,7.1353655]
[1643713333291,0.86641069,2732.5,2731.7,0.439]
[1643713333689,0.34445607,2732.2,2731.8,0.35310422]
[1643713333890,0.86641069,2732.5,2732.0,0.88358727]
[1643713334090,1.93394033,2733.1,2732.0,0.88358727]
[1643713334291,8.5583,2733.2,2732.0,1.06637727]
[1643713334492,8.5583,2733.2,2732.0,1.50537727]
[1643713334693,8.5583,2733.2,2732.0,2.10537727]
[1643713335090,0.44944704,2733.0,2732.6,0.39137116]
[1643713335291,8.03380123,2733.2,2732.6,1.25353557]
[1643713335493,8.03380123,2733.2,2732.6,1.55353557]
[1643713335693,8.03380123,2733.2,2732.6,1.85353557]
[1643713335694,7.3177,2733.2,2732.6,1.85353557]
[1643713335946,7.3177,2733.2,2732.7,0.439]
[1643713336341,7.3177,2733.2,2732.8,0.18279]
[1643713336539,7.3177,2733.2,2732.9,0.439]
[1643713336747,7.3177,2733.2,2732.9,0.739]
[1643713337140,7.3177,2733.2,2733.1,0.18279]
[1643713338042,7.69115851,2733.2,2733.1,0.439]
[1643713338243,7.69115851,2733.2,2733.1,1.039]
[1643713338439,7.69115851,2733.2,2733.1,1.84025621]
[1643713338440,7.3177,2733.2,2733.1,1.84025621]
[1643713338744,7.3177,2733.2,2733.1,1.039]
[1643713339583,7.3177,2733.2,2733.1,1.40344187]
[1643713340189,7.3177,2733.2,2733.1,2.47967189]
[1643713341491,7.3177,2733.2,2733.1,2.29688189]
[1643713341689,7.3177,2733.2,2733.1,2.47967189]
[1643713342709,7.3177,2733.2,2733.1,2.29688189]
[1643713342893,7.3177,2733.2,2733.1,3.21117789]
[1643713343342,7.3177,2733.2,2733.1,4.21117789]
[1643713345446,7.31627208,2733.2,2733.1,4.21117789]
[1643713346050,0.2039,2734.2,2733.2,7.3162]
[1643713346252,0.2039,2734.2,2733.4,1.21417]
[1643713346450,0.2039,2734.2,2733.5,0.630226]
[1643713346849,0.37150767,2734.0,2733.7,0.87066136]
[1643713347084,1.14775343,2734.2,2733.8,0.439]
[1643713347085,0.2039,2734.2,2733.8,0.439]
[1643713348886,0.2039,2734.2,2733.7,2.47066136]
[1643713349291,0.2039,2734.2,2734.1,0.43767085]
[1643713350295,0.2039,2734.2,2734.1,0.62046085]
[1643713350940,2.17319595,2735.1,2734.1,0.62046085]
[1643713350941,0.86149595,2735.1,2734.1,0.62046085]
[1643713351140,0.86149595,2735.1,2734.2,0.439]
[1643713351737,0.86149595,2735.1,2734.4,1.21392]
[1643713351938,0.86149595,2735.1,2734.5,0.439]
[1643713352137,0.84599036,2734.7,2733.9,1.0]
[1643713352346,0.84599036,2734.7,2733.8,0.00691575]
[1643713352347,0.84599036,2734.7,2733.8,0.439]
[1643713352537,0.84599036,2734.7,2733.7,0.48279]
[1643713353143,0.36088771,2734.5,2734.1,1.13338952]
[1643713353342,0.36088771,2734.5,2734.1,1.43338952]
[1643713354140,0.36088771,2734.5,2734.0,0.91415]
[1643713354343,0.36088771,2734.5,2734.0,0.3]
[1643713354586,0.36088771,2734.5,2733.7,0.3]
[1643713354995,0.36088771,2734.5,2733.6,0.18902842]
[1643713355188,0.36088771,2734.5,2733.9,1.06712542]
[1643713355389,0.1827,2735.0,2733.9,1.06712542]
[1643713355589,0.86149595,2735.1,2733.9,3.4751255]
[1643713356193,0.86149595,2735.1,2734.0,0.439]
[1643713356394,0.86149595,2735.1,2734.1,2.97751595]
[1643713356591,0.43237969,2735.0,2734.6,0.43789217]
[1643713356990,0.86149595,2735.1,2734.7,0.79039407]
[1643713357798,0.86149595,2735.1,2734.7,0.97318407]
[1643713357998,2.50486586,2735.6,2735.0,0.01266958]
[1643713358436,2.50486586,2735.6,2735.1,0.439]
[1643713358437,0.7097117,2735.6,2735.1,0.439]
[1643713358637,0.00486586,2735.6,2735.2,0.91573148]
[1643713358837,0.00486586,2735.6,2735.2,1.65473148]
[1643713359238,0.00486586,2735.6,2735.3,1.29009025]
[1643713359544,0.00486586,2735.6,2735.4,0.3]
[1643713360147,0.00486586,2735.6,2735.4,1.3]
[1643713360649,0.00486586,2735.6,2735.5,2.513163]
[1643713360850,0.00486586,2735.6,2735.5,9.121163]
[1643713360851,6.586e-05,2735.6,2735.5,9.121163]
[1643713361046,6.586e-05,2735.6,2735.5,9.09186047]
[1643713361251,6.586e-05,2735.6,2735.5,6.79079]
[1643713361652,6.586e-05,2735.6,2735.5,6.608]
[1643713361947,6.586e-05,2735.6,2735.5,1.439]
[1643713362189,6.586e-05,2735.6,2735.4,5.60719997]
[1643713363390,6.586e-05,2735.6,2734.7,0.01135787]
[1643713363592,0.44616496,2736.0,2734.6,5.169]
[1643713363889,1.54349575,2735.9,2734.6,5.169]
[1643713364093,3.86471902,2735.8,2734.3,0.01135319]
[1643713364293,1.54349575,2735.7,2734.1,5.169]
[1643713364505,0.43278089,2734.6,2734.2,1.20020612]
[1643713365204,5.2704,2735.6,2734.2,1.20020612]
[1643713365401,1.54374153,2735.5,2734.2,1.20020612]
[1643713365696,0.1827,2735.4,2734.3,0.18279]
[1643713365948,5.0877,2735.6,2734.3,1.2140328]
[1643713366147,0.31742808,2735.1,2734.7,0.42579528]
[1643713366748,0.31742808,2735.1,2734.8,0.82746285]
[1643713366948,0.31742808,2735.1,2734.8,1.12746285]
[1643713367949,3.232,2735.7,2734.8,1.12746285]
[1643713368148,0.1827,2735.7,2734.8,1.12746285]
[1643713368556,0.71295308,2735.4,2734.8,1.12746285]
[1643713368953,0.37219054,2735.3,2734.8,1.12746285]
[1643713372683,0.4042235,2736.2,2735.2,0.3]
[1643713372879,0.38571479,2735.7,2735.3,0.324455]
[1643713373342,1.21866935,2735.7,2735.2,0.73791001]
[1643713373528,1.21866935,2735.7,2735.2,1.03791001]
[1643713373729,0.38571479,2735.7,2735.2,1.03791001]
[1643713374637,0.38571479,2735.7,2735.2,2.19424381]
[1643713374834,0.38571479,2735.7,2735.2,3.19424381]
[1643713375033,0.38571479,2735.7,2735.3,0.91377]
[1643713375241,0.78418509,2735.9,2735.4,0.3]
[1643713375635,0.0126674,2736.4,2735.4,0.3]
[1643713375836,0.0126674,2736.4,2735.5,0.7309726]
[1643713376035,0.0126674,2736.4,2735.6,0.3]
[1643713376237,1.2227,2736.7,2735.7,0.44172586]
[1643713376238,0.34351998,2736.1,2735.7,0.44172586]
[1643713376638,0.80647243,2736.5,2736.0,0.92585325]
[1643713377063,0.80647243,2736.5,2736.1,0.3]
[1643713377265,0.19483073,2737.0,2736.1,0.3]
[1643713377464,1.54304067,2736.9,2736.1,0.3]
[1643713377667,1.54304067,2736.9,2736.7,0.42419477]
[1643713377875,3.39656593,2737.3,2736.2,1.0]
[1643713378067,1.54169669,2737.2,2736.2,1.0]
[1643713378266,0.75833907,2736.9,2736.2,1.0]
[1643713378664,0.38156593,2737.3,2736.5,0.80268312]
[1643713378866,0.39746564,2736.7,2736.5,0.80268312]
[1643713379068,0.39746564,2736.7,2736.5,1.10268312]
[1643713379466,5.0523,2737.6,2736.5,1.10268312]
[1643713379672,1.2204,2737.6,2736.5,1.10268312]
[1643713379871,1.2204,2737.6,2737.0,0.90900835]
[1643713380071,1.2204,2737.6,2736.4,0.439]
[1643713380271,1.2204,2737.6,2736.4,0.739]
[1643713380477,0.39679139,2737.0,2736.4,0.439]
[1643713380680,0.39679139,2737.0,2736.5,1.4613667]
[1643713380937,1.2204,2737.6,2736.5,1.4613667]
[1643713381130,1.2204,2737.6,2737.3,0.8863862]
[1643713381330,0.68377766,2737.8,2736.6,1.0]
[1643713381532,0.68377766,2737.8,2736.8,0.439]
[1643713381930,0.4224267,2737.0,2736.8,0.439]
[1643713382330,0.4224267,2737.0,2736.7,0.3]
[1643713382529,0.4224267,2737.0,2736.6,2.22133818]
[1643713382730,0.1826,2738.0,2736.6,2.22133818]
[1643713383735,0.39289154,2737.2,2736.6,2.22133818]
[1643713383936,0.87367667,2737.0,2736.6,1.3]
[1643713384142,0.87367667,2737.0,2736.1,0.439]
[1643713384339,0.01251419,2736.8,2735.7,0.18279]
[1643713384779,0.01251419,2736.8,2735.8,0.42801086]
[1643713384985,0.01251419,2736.8,2736.1,0.82685599]
[1643713385580,0.87367667,2737.0,2736.1,0.82685599]
[1643713386281,0.36301879,2736.4,2736.1,1.42685599]
[1643713387483,0.36301879,2736.4,2736.1,0.6]
[1643713387882,0.36301879,2736.4,2736.1,0.3]
[1643713389023,4.2325,2737.3,2736.1,0.3]
[1643713389625,4.2325,2737.3,2736.2,1.4615323]
[1643713389925,1.1508,2737.3,2736.2,1.4615323]
[1643713390124,1.1508,2737.3,2736.3,0.3]
[1643713390327,0.3188356,2737.0,2736.7,0.85230528]
[1643713390527,0.3188356,2737.0,2736.3,0.3]
[1643713391125,0.3188356,2737.0,2736.3,1.0307821]
[1643713391527,0.40932566,2736.4,2736.3,1.95565532]
[1643713391727,0.40932566,2736.4,2736.3,2.95565532]
[1643713392063,0.40932566,2736.4,2736.3,0.3]
[1643713392271,0.40932566,2736.4,2735.6,3.1806]
[1643713392470,0.40932566,2736.4,2735.5,0.45918994]
[1643713393067,0.3540035,2735.9,2735.8,1.4617264]
[1643713393474,0.3540035,2735.9,2735.8,1.7617264]
[1643713393666,0.3540035,2735.9,2735.8,3.0617264]
[1643713393867,9.9943,2737.2,2735.8,1.7617264]
[1643713394068,4.4127,2737.2,2735.9,1.0]
[1643713394268,4.4127,2737.2,2735.8,2.7617264]
[1643713394467,4.4127,2737.2,2735.8,1.7617264]
[1643713394670,4.4127,2737.2,2735.8,2.7617264]
[1643713394873,4.4127,2737.2,2735.8,3.0617264]
[1643713395474,0.75775493,2736.4,2735.8,3.0617264]
[1643713395674,0.75775493,2736.4,2735.8,2.7617264]
[1643713396524,0.41126038,2736.2,2735.8,2.7617264]
[1643713396822,8.0373,2737.2,2735.9,0.36628587]
[1643713397024,8.0373,2737.2,2735.9,0.66628587]
[1643713397224,8.0373,2737.2,2736.0,2.59406631]
[1643713397622,8.0373,2737.2,2736.1,1.0]
[1643713398222,0.42979896,2736.8,2736.6,0.97278489]
[1643713398821,0.42979896,2736.8,2736.6,1.27278489]